bitfinex-derivatives/quotes_ETHF0:USTF0_20240829
["timestamp","ask_amount","ask_price","bid_price","bid_amount"]
[1724930230665,0.3638,2551.6,2551.5,0.39182]
[1724930231053,4.68795721,2551.6,2551.5,0.39182]
[1724930231558,0.3638,2551.6,2551.5,4.31102]
[1724930231757,3.5825,2551.7,2551.5,4.31102]
[1724930231758,0.00587832,2551.8,2551.7,0.39179]
[1724930232156,4.1597159,2551.8,2551.7,0.39179]
[1724930232352,4.1597159,2551.8,2551.7,5.67398]
[1724930232563,0.00587832,2551.8,2551.7,11.67398]
[1724930232763,8.32e-06,2551.8,2551.7,15.86127]
[1724930233163,0.0202,2552.0,2551.9,1.37117]
[1724930233356,0.0202,2552.0,2551.9,45.56117]
[1724930233554,0.0202,2552.0,2551.9,49.47957]
[1724930233861,0.0202,2552.0,2551.9,55.47957]
[1724930236477,0.0202,2552.0,2551.9,56.20137]
[1724930239156,0.00587832,2552.2,2552.1,1.37107]
[1724930239361,0.00587832,2552.2,2552.1,7.96887]
[1724930239559,0.00587832,2552.2,2552.1,11.88727]
[1724930240665,0.00587832,2552.2,2552.1,17.88727]
[1724930243165,0.3627,2552.8,2552.7,0.39164]
[1724930243365,0.3627,2552.8,2552.7,7.01864]
[1724930244058,0.3627,2552.8,2552.7,3.78164]
[1724930244259,0.3633,2553.1,2552.8,0.39162]
[1724930244460,0.3633,2553.1,2552.7,7.01863]
[1724930244461,0.75889,2553.0,2552.7,7.01863]
[1724930244667,4.47796287,2553.0,2552.8,0.39162]
[1724930244861,4.86956287,2553.0,2552.7,7.01863]
[1724930245271,4.47796287,2553.0,2552.7,3.39]
[1724930245661,4.86956287,2553.0,2552.7,3.78163]
[1724930245865,4.47796287,2553.0,2552.7,3.78163]
[1724930246060,4.86956287,2553.0,2552.7,3.78163]
[1724930246372,4.86957287,2553.0,2552.6,3.237]
[1724930246979,4.86957287,2553.0,2552.7,0.39164]
[1724930247167,4.86957287,2553.0,2552.6,3.237]
[1724930247168,4.86957287,2553.0,2552.6,3.62864]
[1724930247365,7.68576287,2553.0,2552.5,3.2078]
[1724930247663,0.39163,2552.8,2552.5,6.83647]
[1724930247967,4.87579379,2552.7,2552.5,6.4448]
[1724930248268,0.3711,2552.6,2552.5,6.83647]
[1724930248475,0.7497,2552.6,2552.5,6.83647]
[1724930248667,0.7497,2552.6,2552.5,10.22647]
[1724930249771,0.7497,2552.6,2552.5,9.8348]
[1724930250973,0.7497,2552.6,2552.5,10.22647]
[1724930252965,0.3786,2552.6,2552.5,14.14407]
[1724930253268,0.3614,2552.9,2552.8,0.39162]
[1724930253474,0.3614,2552.9,2552.8,3.78162]
[1724930253672,0.97874,2553.7,2552.8,3.78162]
[1724930253673,3.2078,2553.3,2552.8,13.3068]
[1724930253965,5.59002947,2553.6,2553.3,3.78153]
[1724930254172,0.39152,2553.5,2553.3,3.39]
[1724930254570,3.97655029,2553.4,2553.3,3.39]
[1724930254766,4.36808029,2553.4,2553.1,47.78937]
[1724930254973,0.75295,2553.3,2553.1,44.19]
[1724930255173,0.3614,2553.3,2553.1,44.58157]
[1724930256075,0.3614,2553.3,2553.1,41.19157]
[1724930256569,0.3614,2553.3,2553.1,40.8]
[1724930256570,0.75295,2553.3,2553.1,40.8]
[1724930257068,0.3614,2553.3,2553.1,40.8]
[1724930257373,0.39157,2553.2,2553.0,3.236]
[1724930257560,0.7418,2553.1,2553.0,3.236]
[1724930257971,4.91616871,2553.1,2553.0,3.236]
[1724930258766,4.91616871,2553.1,2553.0,3.62759]
[1724930258978,0.7418,2553.1,2553.0,3.236]
[1724930259770,0.7418,2553.1,2553.0,3.62759]
[1724930259976,0.3839,2553.1,2553.0,3.62759]
[1724930260568,0.3839,2553.1,2553.0,3.236]
[1724930261669,0.39157,2553.2,2553.0,3.62759]
[1724930261968,1.0711,2553.3,2553.1,0.39157]
[1724930262963,1.0711,2553.3,2553.2,0.39156]
[1724930263162,1.0711,2553.3,2553.1,0.39157]
[1724930263566,1.0711,2553.3,2553.0,3.9779]
[1724930263567,1.0711,2553.3,2553.2,0.39156]
[1724930263775,1.0711,2553.3,2553.1,0.39157]
[1724930263974,1.0711,2553.3,2553.0,3.9779]
[1724930264173,1.0711,2553.3,2553.1,0.39157]
[1724930264377,1.0711,2553.3,2553.2,0.39156]
[1724930264576,1.0711,2553.3,2553.1,41.19157]
[1724930264778,1.0711,2553.3,2553.2,0.39156]
[1724930264970,1.0711,2553.3,2553.0,3.9779]
[1724930265169,1.0711,2553.3,2553.1,0.39156]
[1724930265772,3.2078,2553.4,2553.3,0.39155]
[1724930266077,3.2078,2553.4,2553.3,1.80155]
[1724930266272,3.2078,2553.4,2553.3,5.71835]
[1724930266678,3.2078,2553.4,2553.3,4.30835]
[1724930267073,3.2078,2553.4,2553.3,3.9168]
[1724930267672,3.2078,2553.4,2553.3,4.30835]
[1724930272685,0.7283,2553.6,2553.5,0.39152]
[1724930272872,0.7283,2553.6,2553.5,3.38]
[1724930281381,3.2078,2554.1,2553.5,3.38]
[1724930281579,0.7497,2553.9,2553.8,3.77147]
[1724930281780,4.60605118,2553.9,2553.8,3.77147]
[1724930281975,0.3813,2553.9,2553.8,3.77147]
[1724930282178,0.3684,2554.1,2553.8,3.38]
[1724930282478,0.3813,2554.2,2554.1,0.39142]
[1724930282674,0.48345485,2554.2,2554.1,1.10432]
[1724930282869,0.48345485,2554.2,2554.1,5.01952]
[1724930283378,0.48345485,2554.2,2554.1,11.01952]
[1724930283594,0.48345485,2554.2,2554.1,11.38642]
[1724930283877,0.48345485,2554.2,2554.1,8.23452]
[1724930284073,0.48345485,2554.2,2554.1,49.03452]
[1724930284479,0.48345485,2554.2,2554.1,48.6431]
[1724930284674,0.48345485,2554.2,2554.1,44.5345]
[1724930284974,0.48345485,2554.2,2554.1,3.215]
[1724930285375,0.48345485,2554.2,2554.1,6.595]
[1724930286884,0.48345485,2554.2,2553.9,3.38]
[1724930287688,1.1326,2554.4,2553.9,3.38]
[1724930287883,0.48345485,2554.1,2553.9,3.38]
[1724930288077,0.366,2554.0,2553.9,3.38]
[1724930288274,4.44227214,2554.0,2553.9,3.38]
[1724930288782,0.84945485,2554.0,2553.9,3.38]
[1724930289183,4.76465485,2554.0,2553.7,6.595]
[1724930289488,0.7183,2553.9,2553.7,3.38]
[1724930289873,0.48345485,2553.8,2553.7,3.38]
[1724930292286,8.77724402,2553.8,2553.7,3.38]
[1724930292483,4.86124402,2553.8,2553.7,3.77149]
[1724930292984,4.86124402,2553.8,2553.7,13.68749]
[1724930293185,0.3568,2554.4,2553.8,0.1939672]
[1724930293387,0.3568,2554.4,2554.3,3.77139]
[1724930293687,0.0202,2555.2,2554.3,6.5878]
[1724930293688,3.5839,2555.1,2554.3,6.5878]
[1724930293885,3.9407,2555.1,2554.9,3.38]
[1724930294187,8.32714719,2555.1,2554.9,3.38]
[1724930294389,12.24074719,2555.1,2554.9,3.38]
[1724930294581,7.95104719,2555.1,2554.9,3.7713]
[1724930294781,7.95104719,2555.1,2554.9,3.38]
[1724930295690,7.59424719,2555.1,2554.9,3.7713]
[1724930295882,3.2078,2555.1,2554.9,3.7713]
[1724930296387,3.2078,2555.1,2554.9,3.38]
[1724930296698,3.2078,2555.1,2554.9,3.7713]
[1724930296989,3.2078,2555.1,2554.9,3.38]
[1724930297985,3.59908,2555.1,2554.9,3.38]
[1724930298192,0.3893,2555.0,2554.9,3.38]
[1724930299092,0.3893,2555.0,2554.7,3.38]
[1724930299391,3.59912,2554.8,2554.5,3.38]
[1724930299594,0.3831,2554.7,2554.5,3.38]
[1724930299785,8.79365082,2554.7,2554.5,3.38]
[1724930299985,0.39135,2554.6,2554.3,3.38]
[1724930300184,4.48791082,2554.7,2554.3,3.38]
[1724930300488,4.86528082,2554.5,2554.3,3.38]
[1724930300682,0.76047,2554.5,2554.3,3.38]
[1724930300888,4.41307589,2554.4,2554.3,3.38]
[1724930301090,4.80445589,2554.4,2554.3,3.38]
[1724930301286,8.71965589,2554.4,2554.3,3.38]
[1724930302288,8.71965589,2554.4,2554.1,0.00587832]
[1724930302289,8.32827589,2554.4,2554.1,3.38587832]
[1724930302488,0.3914,2554.3,2554.1,3.38587832]
[1724930302890,4.2223849,2554.2,2554.1,3.38587832]
[1724930303291,8.1375849,2554.2,2554.1,3.38587832]
[1724930303685,3.9152,2554.2,2554.1,3.38587832]
[1724930303890,8.1588706,2554.2,2554.1,0.00587832]
[1724930304384,11.3666706,2554.2,2554.1,0.00587832]
[1724930304585,0.39146,2553.9,2553.7,3.38]
[1724930304791,0.3762,2553.8,2553.5,3.38]
[1724930305094,4.71190557,2553.8,2553.5,3.38]
[1724930305798,4.33570557,2553.8,2553.5,3.38]
[1724930306599,4.33570557,2553.8,2553.7,3.38]
[1724930306986,8.25170557,2553.8,2553.7,3.38]
[1724930307192,4.33570557,2553.8,2553.7,3.38]
[1724930310298,4.33570557,2553.8,2553.7,3.77149]
[1724930314409,4.33570557,2553.8,2553.7,7.68749]
[1724930314601,0.00587832,2553.9,2553.8,0.39147]
[1724930315104,3.2078,2554.3,2554.2,0.39141]
[1724930315301,3.2078,2554.3,2554.2,3.77141]
[1724930316596,3.2078,2554.3,2554.2,44.57141]
[1724930318913,3.5688,2554.6,2554.4,0.39138]
[1724930319305,4.44296355,2554.5,2554.4,0.39138]
[1724930319709,3.4002,2555.2,2554.4,16.5254]
[1724930319710,0.3529,2555.1,2554.4,16.5254]
[1724930319900,0.3529,2555.1,2555.0,3.38]
[1724930320207,4.74507602,2555.1,2555.0,3.38]
[1724930322012,8.30577602,2555.1,2555.0,3.38]
[1724930322202,4.39217602,2555.1,2555.0,3.38]
[1724930322411,3.55508041,2555.2,2555.0,3.77129]
[1724930322717,4.49638845,2555.1,2554.8,3.77718832]
[1724930322906,4.49638845,2555.1,2554.8,6.61587832]
[1724930323105,0.367,2555.0,2554.8,3.38587832]
[1724930323319,0.367,2555.0,2554.8,0.00587832]
[1724930323615,4.88528845,2554.9,2554.8,0.00587832]
[1724930324111,0.39137,2554.5,2554.1,0.39142]
[1724930324311,0.3889,2554.4,2554.1,3.38]
[1724930324518,4.8000835,2554.4,2554.1,3.38]
[1724930324707,0.78029,2554.4,2554.1,3.38]
[1724930324904,0.3914,2554.3,2554.1,3.38]
[1724930325106,0.78029,2554.4,2554.1,3.38]
[1724930325614,4.34041901,2554.3,2554.1,3.38]
[1724930325810,4.69541901,2554.3,2554.1,3.38]
[1724930326009,4.34041901,2554.3,2554.1,3.38]
[1724930326315,0.00587832,2554.5,2554.3,0.39139]
[1724930326613,4.21873826,2554.4,2554.3,3.77139]
[1724930327217,4.21873826,2554.4,2554.3,3.38]
[1724930327815,0.00587832,2554.5,2554.3,7.68659]
[1724930328118,0.00587832,2554.5,2554.3,3.77139]
[1724930328316,0.00587832,2554.5,2554.3,3.38]
[1724930328512,0.00587832,2554.5,2554.3,3.77138]
[1724930328814,4.44665561,2554.4,2554.1,3.38]
[1724930329019,4.44665561,2554.4,2554.2,0.3914]
[1724930329321,4.44665561,2554.4,2554.1,3.38]
[1724930329517,4.44665561,2554.4,2554.1,3.77142]
[1724930329518,4.79825561,2554.4,2554.1,3.77142]
[1724930330416,4.79825561,2554.4,2554.2,0.3914]
[1724930330619,0.3516,2554.4,2554.2,0.3914]
[1724930330820,0.3516,2554.4,2554.1,3.77142]
[1724930331016,4.43198435,2554.3,2554.1,3.77142]
[1724930331515,4.43198435,2554.3,2554.2,0.39141]
[1724930332017,0.00587832,2554.5,2554.4,0.39138]
[1724930332221,0.00587832,2554.5,2554.4,3.77138]
[1724930332411,3.2078,2554.9,2554.4,48.0944]
[1724930332714,4.4918812,2554.8,2554.6,3.77134]
[1724930332919,4.4918812,2554.8,2554.6,0.39134]
[1724930333818,3.2078,2554.9,2554.7,0.39133]
[1724930334417,0.3516,2555.0,2554.7,0.39133]
[1724930334618,3.2078,2554.9,2554.7,0.39133]
[1724930334817,7.45079834,2554.9,2554.7,0.39133]
[1724930336923,7.45079834,2554.9,2554.6,0.39134]
[1724930337315,7.83299834,2554.9,2554.6,0.39134]
[1724930337814,8.22429834,2554.9,2554.5,0.39136]
[1724930338021,8.22429834,2554.9,2554.4,44.5335]
[1724930338223,8.22429834,2554.9,2554.5,0.39136]
[1724930338621,7.83299834,2554.9,2554.4,44.5335]
[1724930338821,7.83299834,2554.9,2554.6,0.39134]
[1724930339028,8.22429834,2554.9,2554.5,0.39135]
[1724930340123,7.45079834,2554.9,2554.4,47.8415]
[1724930340828,7.45079834,2554.9,2554.6,0.39134]
[1724930342027,7.45079834,2554.9,2554.7,0.39133]
[1724930342820,7.45079834,2554.9,2554.8,0.39132]
[1724930343116,7.45079834,2554.9,2554.7,0.39132]
[1724930343718,7.45079834,2554.9,2554.8,0.39132]
[1724930343922,4.24299834,2554.9,2554.7,0.39132]
[1724930344727,0.3516,2555.0,2554.6,3.38]
[1724930344925,0.3516,2555.0,2554.7,0.39132]
[1724930345326,4.11218937,2554.9,2554.7,0.39132]
[1724930346628,4.11218937,2554.9,2554.6,3.77134]
[1724930347330,4.11218937,2554.9,2554.7,0.39133]
[1724930348127,4.11218937,2554.9,2554.8,0.39132]
[1724930348323,4.11218937,2554.9,2554.7,0.39132]
[1724930348519,4.11218937,2554.9,2554.6,3.38]
[1724930348732,4.11218937,2554.9,2554.7,0.39132]
[1724930349320,4.11218937,2554.9,2554.8,0.3778]
[1724930349934,4.11218937,2554.9,2554.6,3.77134]
[1724930350530,4.11218937,2554.9,2554.7,0.39133]
[1724930350724,4.48498937,2554.9,2554.7,0.39133]
[1724930351125,4.48498937,2554.9,2554.8,0.39132]
[1724930351321,4.11218937,2554.9,2554.8,0.39132]
[1724930351626,3.61927,2555.2,2554.8,0.39132]
[1724930352021,4.34756889,2555.1,2555.0,3.77129]
[1724930352217,3.228,2555.2,2555.1,0.39127]
[1724930352624,3.228,2555.2,2555.1,0.75247]
[1724930354219,3.228,2555.2,2555.1,4.66607]
[1724930354220,0.0202,2555.2,2555.1,4.66607]
[1724930354422,0.0202,2555.2,2555.1,5.04787]
[1724930355029,3.2078,2556.5,2555.2,0.97815]
[1724930355331,3.2078,2556.5,2555.8,3.38]
[1724930355332,4.14181331,2556.0,2555.8,3.38]
[1724930355520,0.7471,2555.9,2555.8,3.38]
[1724930356219,3.2078,2556.5,2555.8,10.5006]
[1724930356421,3.2078,2556.5,2556.1,3.38]
[1724930356626,4.10669912,2556.3,2556.2,0.3911]
[1724930356825,4.10669912,2556.4,2556.2,0.3911]
[1724930357128,4.10669912,2556.4,2556.1,3.38]
[1724930357129,3.2078,2556.5,2556.3,0.39107]
[1724930357324,4.41883449,2556.4,2556.3,0.39109]
[1724930357524,3.2078,2556.8,2556.3,7.292]
[1724930357725,3.2078,2556.8,2556.5,3.77105]
[1724930358035,3.2078,2556.8,2556.5,3.38]
[1724930358336,0.3581,2556.7,2556.5,3.38]
[1724930359437,4.36836548,2556.6,2556.5,3.38]
[1724930359729,8.65316548,2556.6,2556.5,3.38]
[1724930360134,0.39106,2556.5,2556.3,3.38]
[1724930360322,0.3815,2556.4,2556.3,3.38]
[1724930360529,4.7403103,2556.4,2556.3,3.38]
[1724930360727,4.7403103,2556.4,2556.3,3.77109]
[1724930361330,0.3736,2556.6,2556.3,7.68309]
[1724930361533,3.2078,2556.8,2556.5,3.38]
[1724930361728,1.1134,2557.3,2556.7,3.38]
[1724930361936,1.1134,2557.3,2557.2,3.38]
[1724930362124,5.56827274,2557.3,2557.2,3.38]
[1724930362329,5.0238,2557.3,2557.2,3.38]
[1724930362734,9.47867274,2557.3,2557.2,3.38]
[1724930363134,9.47867274,2557.3,2557.0,3.38]
[1724930363437,0.39097,2557.1,2557.0,3.38]
[1724930363639,4.30137,2557.1,2557.0,3.38]
[1724930363936,8.36339789,2557.1,2557.0,3.38]
[1724930364135,4.45299789,2557.1,2556.7,0.00586671]
[1724930364440,3.2078,2557.2,2557.0,3.38]
[1724930364833,4.07331762,2557.1,2557.0,3.38]
[1724930365633,11.19151762,2557.1,2556.7,0.00586671]
[1724930365839,7.50917,2557.1,2556.7,0.00586671]
[1724930366036,4.3325925,2557.0,2556.7,0.00586671]
[1724930366642,8.2437925,2557.0,2556.7,0.00586671]
[1724930366943,4.3325925,2557.0,2556.8,3.38]
[1724930367244,3.2078,2557.1,2556.8,3.38]
[1724930367543,3.2078,2557.1,2557.0,3.38]
[1724930369237,7.1182,2557.1,2557.0,3.38]
[1724930369442,4.52392381,2557.1,2557.0,3.38]
[1724930369639,0.7421,2557.2,2557.0,3.38]
[1724930369843,0.0202,2557.6,2557.3,0.39092]
[1724930370044,0.7421,2557.5,2557.3,3.38]
[1724930370246,8.79918317,2557.5,2557.3,3.38]
[1724930370453,7.1182,2557.4,2557.1,3.38]
[1724930370642,3.59873,2557.4,2557.1,3.38]
[1724930370842,4.14668317,2557.3,2557.1,3.38]
[1724930371243,4.53762317,2557.3,2557.1,3.38]
[1724930371437,4.53762317,2557.3,2556.9,3.38]
[1724930371438,0.39097,2557.1,2556.9,3.38]
[1724930371653,0.0202,2557.6,2557.0,6.76]
[1724930371862,0.0202,2557.6,2557.5,3.38]
[1724930372165,0.0202,2557.6,2557.5,44.18]
[1724930372556,0.0202,2557.6,2557.5,3.38]
[1724930372756,4.53500323,2557.6,2557.5,3.38]
[1724930373058,3.2078,2559.0,2557.5,57.5746]
[1724930373375,0.3531,2558.6,2558.5,3.38]
[1724930373672,4.55991052,2558.6,2558.5,3.38]
[1724930373857,4.2619,2558.6,2558.5,3.38]
[1724930374058,8.63891726,2558.6,2558.5,3.38]
[1724930374255,3.2078,2559.6,2558.5,6.76]
[1724930374553,3.4078,2560.0,2559.1,3.2078]
[1724930374759,0.3708,2559.9,2559.5,3.38]
[1724930374956,4.43915428,2559.9,2559.5,3.38]
[1724930375364,0.39058,2559.6,2559.5,3.38]
[1724930375564,3.9064,2559.8,2559.5,3.38]
[1724930375763,4.06835428,2559.6,2559.5,3.38]
[1724930376065,11.66943939,2559.7,2559.5,3.38]
[1724930376261,3.5596,2559.7,2559.5,3.38]
[1724930376461,3.2078,2559.7,2559.5,3.38]
[1724930377065,3.2078,2559.7,2559.5,7.2872]
[1724930377266,3.4078,2560.0,2559.5,7.2872]
[1724930377569,0.2,2560.0,2559.8,3.38]
[1724930378467,4.09775541,2559.9,2559.8,3.38]
[1724930378863,4.09775541,2559.9,2559.6,3.38]
[1724930379060,3.2078,2559.7,2559.4,3.38]
[1724930379269,3.59838,2559.7,2559.3,0.00586671]
[1724930379466,4.24183645,2559.6,2559.3,0.00586671]
[1724930380070,3.2078,2559.7,2559.4,3.38]
[1724930380466,4.4947687,2559.6,2559.4,3.38]
[1724930380673,4.4947687,2559.6,2559.5,11.2516]
[1724930380674,3.4581487,2559.6,2559.5,11.2516]
[1724930380864,0.2,2560.0,2559.9,0.39054]
[1724930381179,0.2,2560.0,2559.9,3.77054]
[1724930381468,0.2,2560.0,2559.7,3.38]
[1724930381673,3.79832,2560.0,2559.7,3.38]
[1724930381874,8.18834929,2560.0,2559.5,3.38]
[1724930382172,7.79781929,2560.0,2559.5,3.38]
[1724930382373,0.2,2560.0,2559.7,3.38]
[1724930382870,0.2,2560.0,2559.8,0.39054]
[1724930383071,0.2,2560.0,2559.9,0.39054]
[1724930383271,0.1,2560.2,2560.1,0.39051]
[1724930383867,0.53903447,2560.5,2560.1,6.7064]
[1724930384161,3.2078,2564.5,2562.3,0.3904]
[1724930384362,3.3078,2564.3,2564.1,3.38]
[1724930384570,4.45343793,2564.2,2563.7,3.2078]
[1724930384774,3.3078,2564.3,2564.1,3.38]
[1724930385070,3.3078,2564.3,2564.0,3.2078]
[1724930385270,0.19567858,2565.3,2563.1,40.8]
[1724930385271,3.2078,2565.5,2564.8,3.89999391]
[1724930385582,6.4156,2565.5,2564.9,3.21365514]
[1724930385767,4.06444649,2565.2,2564.9,3.21365514]
[1724930385965,0.38976,2565.0,2564.1,3.2078]
[1724930386169,3.2078,2564.2,2563.4,4.49]
[1724930386368,3.2078,2563.9,2563.6,3.89999391]
[1724930386567,3.2078,2564.0,2563.2,3.2078]
[1724930386762,0.38989,2564.2,2563.7,3.89999391]
[1724930386963,0.00885848,2563.8,2563.7,3.90584905]
[1724930387174,4.09272447,2564.1,2563.7,3.90584905]
[1724930387366,4.09272447,2564.1,2563.7,0.00585514]
[1724930387367,0.38994,2563.8,2563.7,0.00585514]
[1724930387677,7.82540701,2563.8,2563.7,0.00585514]
[1724930387870,13.49854,2563.8,2563.7,0.00585514]
[1724930388075,17.82868066,2563.8,2563.7,0.00585514]
[1724930388374,0.39002,2563.3,2563.2,3.2078]
[1724930388561,3.2078,2563.4,2562.5,3.798]
[1724930388765,4.33014066,2563.3,2562.8,3.89999391]
[1724930389170,4.33014066,2563.3,2562.7,3.2078]
[1724930389377,4.33014066,2563.3,2563.0,3.89999391]
[1724930389576,4.33014066,2563.3,2562.8,3.89999391]
[1724930389770,4.44283601,2563.5,2562.8,3.89999391]
[1724930389966,3.2078,2563.0,2562.4,3.2078]
[1724930390167,3.2078,2563.0,2561.2,0.58629344]
[1724930390168,3.5733,2562.9,2562.0,3.2078]
[1724930390362,0.39014,2562.6,2562.1,3.89999391]
[1724930390776,4.100117,2562.5,2562.3,3.2078]
[1724930390969,0.00585514,2562.7,2562.4,3.89999391]
[1724930391165,4.195116,2562.7,2562.4,3.89999391]
[1724930391480,0.00585514,2562.7,2562.6,3.89999391]
[1724930391676,0.00585514,2562.7,2562.6,7.10779391]
[1724930392167,0.00585514,2562.7,2562.6,13.6902969]
[1724930392372,5.14e-06,2562.7,2562.6,13.6902969]
[1724930392569,5.14e-06,2562.7,2562.6,7.3001669]
[1724930392765,5.14e-06,2562.7,2562.6,7.10779391]
[1724930395066,4.2744005,2562.7,2562.6,7.10779391]
[1724930397666,4.2744005,2562.7,2562.3,3.2078]
[1724930397877,4.2744005,2562.7,2562.4,3.89999391]
[1724930398174,4.2744005,2562.7,2562.3,3.2078]
[1724930398175,0.39014,2562.5,2562.3,3.2078]
[1724930398376,0.39013,2562.6,2562.3,3.2078]
[1724930398578,4.28811424,2562.4,2562.3,3.2078]
[1724930398779,4.28811424,2562.5,2562.3,3.2078]
[1724930399081,4.28811424,2562.6,2562.3,3.2078]
[1724930399273,0.39013,2562.6,2562.3,3.2078]
[1724930399676,4.2267727,2562.6,2562.3,3.2078]
[1724930399979,0.39016,2562.4,2562.3,3.2078]
[1724930400183,3.9024,2562.5,2562.1,0.00585514]
[1724930400379,10.2267727,2562.6,2562.1,0.00585514]
[1724930400380,4.38048355,2562.4,2562.1,0.00585514]
[1724930400573,4.38048355,2562.4,2562.2,3.59797]
[1724930400873,5.14e-06,2562.7,2562.5,0.39013]
[1724930401077,5.14e-06,2562.7,2562.6,7.49792391]
[1724930401471,5.14e-06,2562.7,2562.6,13.49792391]
[1724930401878,5.14e-06,2562.7,2562.6,7.49792391]
[1724930402378,5.14e-06,2562.7,2562.6,13.49792391]
[1724930402777,5.14e-06,2562.7,2562.6,17.38692391]
[1724930402978,5.14e-06,2562.7,2562.6,59.16224391]
[1724930403380,0.7342,2564.3,2562.6,58.18933]
[1724930403578,0.7342,2564.3,2563.7,3.2078]
[1724930403774,4.0978407,2563.9,2563.7,3.2078]
[1724930403977,4.0978407,2563.9,2563.4,3.2078]
[1724930403978,0.38996,2563.7,2563.4,3.2078]
[1724930404174,3.2078,2563.9,2563.4,7.10778877]
[1724930404379,3.2078,2563.9,2563.4,0.00585514]
[1724930404380,4.47962194,2563.6,2563.4,0.00585514]
[1724930404684,0.39003,2563.2,2563.1,3.2078]
[1724930405082,8.4971517,2563.2,2563.1,3.2078]
[1724930405279,4.2055217,2563.2,2563.1,3.2078]
[1724930405487,4.2055217,2563.2,2563.1,7.10778877]
[1724930405783,0.3822,2563.5,2563.1,7.10778877]
[1724930405784,4.40092205,2563.4,2563.1,7.10778877]
[1724930405977,0.3822,2563.5,2563.1,3.2078]
[1724930406177,4.26256655,2563.4,2563.1,7.10778877]
[1724930406382,0.39003,2563.3,2563.1,3.2078]
[1724930406585,4.26256655,2563.4,2563.1,3.2078]
[1724930406586,14.16416655,2563.4,2563.1,3.2078]
[1724930406781,4.65259655,2563.2,2563.1,3.2078]
[1724930407085,0.39007,2563.0,2562.9,0.00585514]
[1724930407288,6.39007,2563.0,2562.9,0.00585514]
[1724930407481,14.36999476,2563.0,2562.9,0.00585514]
[1724930407680,4.07832476,2563.0,2562.9,3.90584391]
[1724930408183,4.07309746,2563.5,2562.9,3.90584391]
[1724930408485,0.39,2563.5,2563.2,7.10778877]
[1724930408682,0.39,2563.5,2563.2,3.2078]
[1724930408683,0.39002,2563.3,2563.2,3.2078]
[1724930408885,0.39002,2563.3,2562.9,0.00585514]
[1724930408886,0.39007,2563.0,2562.9,0.00585514]
[1724930409280,15.4746242,2563.0,2562.9,0.00585514]
[1724930409476,0.39018,2562.3,2562.0,3.2078]
[1724930409787,0.39016,2562.4,2562.1,3.89998877]
[1724930409992,3.2078,2562.7,2562.1,3.89998877]
[1724930409993,4.2077842,2562.2,2562.1,3.89998877]
[1724930410194,4.08142972,2562.3,2562.0,3.2078]
[1724930410383,0.00585514,2562.4,2562.0,3.2078]
[1724930410584,4.48293193,2562.4,2562.1,3.89998877]
[1724930410788,0.39601514,2562.4,2562.1,3.89998877]
[1724930411093,4.50729823,2562.3,2562.0,3.2078]
[1724930411391,4.50729823,2562.3,2562.2,0.39019]
[1724930411581,0.00585514,2562.4,2562.3,0.39017]
[1724930411782,0.00585514,2562.4,2562.3,18.17795877]
[1724930412083,0.39001,2563.4,2562.7,0.39011]
[1724930412278,0.39001,2563.4,2563.0,3.89998877]
[1724930412592,4.27996772,2563.6,2563.0,3.89998877]
[1724930412593,4.79906827,2563.3,2563.0,3.89998877]
[1724930412984,0.39002,2563.3,2563.0,3.89998877]
[1724930413185,0.00585514,2563.4,2562.9,3.2078]
[1724930413186,4.55409351,2563.2,2562.9,3.2078]
[1724930413488,5.13910351,2563.3,2562.9,3.2078]
[1724930413686,0.39009,2562.9,2562.4,7.8768]
[1724930413886,4.16404351,2563.1,2562.6,3.89998877]
[1724930414084,4.50209474,2562.8,2562.7,7.10778877]
[1724930414284,0.00585514,2563.4,2562.7,7.10778877]
[1724930414285,4.50209474,2563.2,2562.7,7.10778877]
[1724930414491,4.57839814,2563.3,2562.7,7.10778877]
[1724930414792,0.39004,2563.2,2562.7,7.10778877]
[1724930414986,4.55507604,2563.2,2562.7,7.10778877]
[1724930415388,0.39004,2563.2,2562.7,7.10778877]
[1724930415593,0.39008,2562.9,2562.8,3.89998877]
[1724930415785,0.3901,2562.8,2562.3,3.889]
[1724930415989,4.11921627,2562.9,2562.6,3.89998877]
[1724930416186,4.16503604,2562.7,2562.6,3.89998877]
[1724930416696,0.39012,2562.7,2562.4,3.2078]
[1724930416892,0.39012,2562.7,2562.4,7.10778877]
[1724930417091,3.77170532,2562.6,2562.4,7.10778877]
[1724930417495,4.16183532,2562.6,2562.4,7.10778877]
[1724930417803,0.39014,2562.5,2562.4,3.2078]
[1724930418297,4.14741786,2562.5,2562.3,3.2078]
[1724930418602,0.39014,2562.5,2562.3,3.2078]
[1724930418894,4.53755786,2562.5,2562.3,3.2078]
[1724930419101,4.14741786,2562.5,2562.3,3.2078]
[1724930419299,0.3594,2562.8,2562.4,3.89998877]
[1724930419595,0.3594,2562.8,2562.0,4.68]
[1724930419596,0.7495,2562.8,2562.7,3.89998877]
[1724930419802,0.39011,2562.7,2562.5,3.89998877]
[1724930419989,4.82473363,2562.7,2562.2,3.2078]
[1724930420189,0.39011,2562.7,2562.4,3.89998877]
[1724930420500,0.39014,2562.5,2562.4,3.89998877]
[1724930420692,4.26602753,2562.6,2562.2,3.2078]
[1724930420894,0.39016,2562.4,2562.2,7.10778877]
[1724930421295,4.51937564,2562.3,2562.2,7.10778877]
[1724930421689,0.39017,2562.3,2562.2,7.10778877]
[1724930421889,4.51937564,2562.3,2562.2,3.2078]
[1724930422092,4.12920564,2562.3,2562.2,3.2078]
[1724930422489,4.51937564,2562.3,2562.2,3.2078]
[1724930422697,0.39017,2562.3,2562.2,3.2078]
[1724930422886,4.69878472,2562.3,2562.2,3.2078]
[1724930423597,1.36577,2562.0,2561.9,0.00585514]